bitfinex/quotes_BTCUSD_20220109
["timestamp","ask_amount","ask_price","bid_price","bid_amount"]
[1641688911700,0.15510058,41626.0,41622.0,0.07809]
[1641688911902,0.15510058,41626.0,41622.0,0.060068]
[1641688912101,0.30817013,41624.0,41620.0,0.3493978]
[1641688912351,0.060076,41623.0,41621.0,0.060073]
[1641688913551,0.06051918,41625.0,41621.0,0.060073]
[1641688913751,0.037,41623.0,41622.0,0.018021]
[1641688914552,0.037,41623.0,41621.0,0.113073]
[1641688914857,0.097073,41623.0,41621.0,0.113073]
[1641688915052,0.097073,41623.0,41621.0,0.063073]
[1641688915653,0.097073,41623.0,41621.0,0.060073]
[1641688915854,0.079073,41623.0,41621.0,0.060073]
[1641688916997,0.060073,41623.0,41621.0,0.060073]
[1641688917198,0.06095636,41625.0,41621.0,0.060073]
[1641688917401,0.06050818,41625.0,41622.0,0.018022]
[1641688917598,0.06050818,41625.0,41622.0,0.078093]
[1641688917798,0.09950818,41625.0,41622.0,0.078093]
[1641688918398,0.0995082,41625.0,41622.0,0.078093]
[1641688918998,0.0605082,41625.0,41622.0,0.078093]
[1641688919700,0.0945082,41625.0,41622.0,0.078093]
[1641688920147,0.0895082,41625.0,41622.0,0.078093]
[1641688920946,0.0555082,41625.0,41622.0,0.078093]
[1641688921547,0.0555082,41625.0,41622.0,0.060071]
[1641688921746,0.0915082,41625.0,41622.0,0.061071]
[1641688922347,0.09150842,41625.0,41622.0,0.061071]
[1641688922550,0.09150842,41625.0,41622.0,0.079093]
[1641688923050,0.05550842,41625.0,41622.0,0.078093]
[1641688923697,0.07450842,41625.0,41622.0,0.082093]
[1641688924299,0.07450842,41625.0,41622.0,0.057093]
[1641688925102,0.05550842,41625.0,41622.0,0.053093]
[1641688925499,0.05050842,41625.0,41622.0,0.053093]
[1641688925699,0.08050842,41625.0,41622.0,0.053093]
[1641688927542,0.08050842,41625.0,41622.0,0.035071]
[1641688927745,0.46881934,41625.0,41618.0,0.12015]
[1641688927943,0.46881934,41625.0,41615.0,0.00037444]
[1641688927944,0.6492,41624.0,41615.0,0.00037444]
[1641688928143,0.060088,41620.0,41615.0,0.00037444]
[1641688928342,0.0481,41619.0,41615.0,0.00037444]
[1641688928744,0.0481,41619.0,41615.0,0.00074892]
[1641688928942,0.6492,41619.0,41615.0,0.00037448]
[1641688929143,0.060092,41617.0,41616.0,0.060083]
[1641688929343,0.108192,41617.0,41616.0,0.060083]
[1641688929747,0.125192,41617.0,41616.0,0.060083]
[1641688929944,0.125192,41617.0,41616.0,0.29838873]
[1641688931702,0.122192,41617.0,41616.0,0.29838873]
[1641688932102,0.117192,41617.0,41616.0,0.29838873]
[1641688932301,0.112192,41617.0,41615.0,0.00037274]
[1641688932905,0.098192,41617.0,41615.0,0.00037274]
[1641688933103,0.098192,41617.0,41615.0,0.00074549]
[1641688933304,0.098192,41617.0,41616.0,0.26933788]
[1641688933703,0.111192,41617.0,41616.0,0.26933788]
[1641688934503,0.111192,41617.0,41615.0,0.00037458]
[1641688934948,0.27694376,41616.0,41615.0,0.00037458]
[1641688935148,0.44520311,41616.0,41615.0,0.00037458]
[1641688935348,0.168278,41616.0,41615.0,0.00037458]
[1641688935749,0.178278,41616.0,41615.0,0.00037458]
[1641688935951,0.4646051,41616.0,41615.0,0.00037458]
[1641688936552,0.4646051,41616.0,41615.0,0.00037459]
[1641688937051,0.4546051,41616.0,41615.0,0.00037459]
[1641688937450,0.4546051,41616.0,41615.0,0.00074918]
[1641688937652,0.4546051,41616.0,41615.0,0.00037459]
[1641688937856,0.4656051,41616.0,41615.0,0.00037459]
[1641688938054,0.179278,41616.0,41615.0,0.00037459]
[1641688938699,0.45482509,41616.0,41615.0,0.00037451]
[1641688938902,0.45712751,41616.0,41615.0,0.00037451]
[1641688939101,0.44612751,41616.0,41615.0,0.00037451]
[1641688939803,0.18053503,41616.0,41610.0,0.060093]
[1641688940008,0.0591,41616.0,41611.0,0.2921185]
[1641688940204,0.011,41616.0,41615.0,0.9233934]
[1641688940408,0.011,41616.0,41615.0,0.72054913]
[1641688941007,0.28717755,41622.0,41615.0,0.72054913]
[1641688941210,0.33564786,41618.0,41617.0,0.060077]
[1641688941406,0.33564786,41618.0,41616.0,0.138178]
[1641688941805,0.39964786,41618.0,41616.0,0.138178]
[1641688942846,0.39964786,41618.0,41616.0,0.19825579]
[1641688943046,0.39964786,41618.0,41616.0,0.120154]
[1641688943047,0.39573486,41618.0,41616.0,0.120154]
[1641688943252,0.0481,41617.0,41610.0,0.00037915]
[1641688943447,0.0481,41617.0,41614.0,0.060088]
[1641688943848,0.0571,41617.0,41614.0,0.060088]
[1641688944048,0.060088,41616.0,41614.0,0.060088]
[1641688944248,0.108188,41616.0,41614.0,0.060088]
[1641688944448,0.103188,41616.0,41614.0,0.060088]
[1641688944947,0.103188,41616.0,41614.0,0.078114]
[1641688945750,0.120188,41616.0,41614.0,0.078114]
[1641688945949,0.115188,41616.0,41614.0,0.078114]
[1641688946203,0.115188,41616.0,41614.0,0.13819871]
[1641688946400,0.0651,41616.0,41614.0,0.13819871]
[1641688946799,0.017,41616.0,41615.0,0.387085]
[1641688947001,0.33564786,41618.0,41615.0,0.387085]
[1641688947201,0.33564786,41618.0,41616.0,0.060076]
[1641688947801,0.117078,41618.0,41617.0,0.28716534]
[1641688948003,0.057,41618.0,41617.0,0.28716534]
[1641688948204,0.057,41618.0,41616.0,0.061076]
[1641688948604,0.0567108,41618.0,41616.0,0.061076]
[1641688949207,0.0004391,41620.0,41617.0,0.07810508]
[1641688949505,0.0004391,41620.0,41617.0,0.13818608]
[1641688949704,0.0004391,41620.0,41617.0,0.07810508]
[1641688949705,0.38023599,41618.0,41617.0,0.07810508]
[1641688949954,0.38023599,41618.0,41617.0,0.06008008]
[1641688950756,0.42833599,41618.0,41617.0,0.06008008]
[1641688950957,0.42833599,41618.0,41614.0,0.078114]
[1641688950958,0.54850599,41618.0,41614.0,0.06008531]
[1641688951158,0.16827,41618.0,41612.0,0.156221]
[1641688951356,0.0481,41618.0,41614.0,0.00121638]
[1641688951556,0.00043933,41620.0,41615.0,0.437085]
[1641688951855,0.018,41618.0,41617.0,0.91131436]
[1641688952056,0.018,41618.0,41617.0,1.51852769]
[1641688952258,0.018,41618.0,41617.0,1.87615124]
[1641688952757,0.45219043,41627.0,41618.0,1.037085]
[1641688952958,0.060071,41623.0,41622.0,0.018022]
[1641688953157,0.010071,41623.0,41622.0,0.018022]
[1641688953803,0.069071,41623.0,41622.0,0.018022]
[1641688955206,0.010071,41623.0,41622.0,0.018022]
[1641688955807,0.045071,41623.0,41622.0,0.018022]
[1641688956213,0.045071,41623.0,41617.0,0.00124936]
[1641688956214,0.093171,41623.0,41616.0,0.120158]
[1641688956409,0.093171,41623.0,41615.0,0.01840809]
[1641688956609,0.34016,41618.0,41615.0,0.01840809]
[1641688956810,0.108186,41617.0,41615.0,0.01840809]
[1641688957851,0.108186,41617.0,41616.0,0.060084]
[1641688957852,0.134186,41617.0,41616.0,0.060084]
[1641688959151,0.0012069,41623.0,41616.0,0.060084]
[1641688959352,0.0481,41622.0,41618.0,0.060081]
[1641688959952,0.1011,41622.0,41618.0,0.060081]
[1641688960554,0.06008,41621.0,41619.0,0.06007785]
[1641688960853,0.0481,41620.0,41619.0,0.06007785]
[1641688961801,0.0981,41620.0,41619.0,0.07810085]
[1641688963203,0.0481,41620.0,41619.0,0.12810085]
[1641688963405,0.0481,41620.0,41619.0,0.07810085]
[1641688964004,0.1081,41620.0,41619.0,0.07810085]
[1641688964207,0.1081,41620.0,41618.0,0.060081]
[1641688964604,0.35265046,41619.0,41618.0,0.060081]
[1641688964859,0.41273046,41619.0,41617.0,0.018025]
[1641688965259,0.06008,41619.0,41617.0,0.018025]
[1641688965461,0.06008,41619.0,41617.0,0.078107]
[1641688965860,0.13008,41619.0,41617.0,0.078107]
[1641688966061,0.13008,41619.0,41617.0,0.060082]
[1641688966263,0.0481,41618.0,41615.0,0.00037491]
[1641688966464,0.060093,41617.0,41615.0,0.00037491]
[1641688966660,0.89933063,41616.0,41615.0,0.00074982]
[1641688966864,1.28211121,41616.0,41615.0,0.00037491]
[1641688967162,2.34573472,41616.0,41615.0,0.00037491]
[1641688967360,2.34573472,41616.0,41605.0,0.50660628]
[1641688967361,0.27496951,41609.0,41605.0,0.50660628]
[1641688967564,0.108206,41608.0,41605.0,0.50660628]
[1641688968161,0.108206,41608.0,41600.0,0.50660628]
[1641688968361,0.29464145,41606.0,41600.0,0.50660628]
[1641688968615,0.060101,41604.0,41602.0,0.06010062]
[1641688968811,0.0481,41603.0,41602.0,0.06010062]
[1641688969812,0.0591,41603.0,41602.0,0.06910062]
[1641688970713,0.6091,41603.0,41602.0,0.009]
[1641688971212,0.6091,41603.0,41596.0,0.50660628]
[1641688971213,0.5981,41603.0,41596.0,0.50660628]
[1641688971415,0.060112,41597.0,41596.0,0.50660628]
[1641688971615,0.43165174,41597.0,41596.0,0.50660628]
[1641688972014,0.44065174,41597.0,41595.0,0.06010993]
[1641688972213,0.44065174,41597.0,41596.0,0.387085]
[1641688972450,0.44065174,41597.0,41596.0,0.00038211]
[1641688972651,0.44065174,41597.0,41596.0,0.05038211]
[1641688973052,0.43165174,41597.0,41596.0,0.05038211]
[1641688973253,0.47975174,41597.0,41596.0,0.00038211]
[1641688973455,0.47975174,41597.0,41596.0,0.00076422]
[1641688973655,0.47725704,41597.0,41596.0,0.00038211]
[1641688973854,0.49425704,41597.0,41596.0,0.00038211]
[1641688975055,0.47725704,41597.0,41596.0,0.00038211]
[1641688975256,0.060113,41596.0,41594.0,0.01341611]
[1641688975457,0.0481,41595.0,41594.0,0.01341611]
[1641688975655,0.0481,41595.0,41594.0,0.40050111]
[1641688976106,0.0481,41595.0,41594.0,0.75762669]
[1641688977005,0.0481,41595.0,41594.0,0.50050111]
[1641688977205,0.0481,41595.0,41594.0,0.49850111]
[1641688978007,0.0571,41595.0,41594.0,0.49850111]
[1641688979207,0.0481,41595.0,41594.0,0.49850111]
[1641688979852,0.0531,41595.0,41594.0,0.49850111]
[1641688981056,0.0531,41595.0,41594.0,0.49814466]
[1641688981255,0.0531,41595.0,41594.0,0.49714466]
[1641688981958,0.0571,41595.0,41594.0,0.40050111]
[1641688982157,0.0571,41595.0,41594.0,0.01341611]
[1641688983157,0.0481,41595.0,41594.0,0.01341611]
[1641688983805,0.0481,41595.0,41593.0,0.18033547]
[1641688984004,0.0571,41595.0,41593.0,0.18033547]
[1641688984405,0.0571,41595.0,41594.0,0.387085]
[1641688984606,0.0571,41595.0,41594.0,0.437085]
[1641688985204,0.0481,41595.0,41594.0,0.72117035]
[1641688985403,0.0481,41595.0,41594.0,0.97856726]
[1641688985603,0.0481,41595.0,41594.0,0.98159145]
[1641688986005,0.0561,41595.0,41594.0,0.98159145]
[1641688987008,0.0561,41595.0,41594.0,0.67117035]
[1641688987209,0.0481,41595.0,41594.0,0.72117035]
[1641688987451,0.0481,41595.0,41594.0,0.77117035]
[1641688989053,0.0481,41595.0,41594.0,0.487085]
[1641688990055,0.0531,41595.0,41594.0,0.487085]
[1641688991303,0.0481,41595.0,41594.0,0.487085]
[1641688991907,0.0581,41595.0,41594.0,0.487085]
[1641688994009,0.0481,41595.0,41594.0,0.487085]
[1641688996652,0.0481,41595.0,41594.0,0.387085]
[1641688996853,0.04781064,41595.0,41593.0,0.18033547]
[1641688997857,0.10792364,41595.0,41593.0,0.120222]
[1641688998056,0.11492364,41595.0,41594.0,0.5]
[1641688998456,0.51492364,41595.0,41594.0,0.5]
[1641688998907,0.11492364,41595.0,41594.0,0.5]
[1641688999305,0.10792364,41595.0,41594.0,0.5]
[1641689000005,0.11992364,41595.0,41594.0,0.5]
[1641689000409,0.56992364,41595.0,41594.0,0.5]
[1641689000606,0.91167085,41595.0,41594.0,0.5]
[1641689000808,1.01288711,41595.0,41594.0,0.5]
[1641689001008,0.85,41593.0,41591.0,0.00037036]
[1641689001208,1.84849773,41592.0,41591.0,0.00037036]
[1641689001409,1.50043926,41592.0,41591.0,0.00037036]
[1641689001707,2.24947497,41592.0,41591.0,0.00037036]
[1641689002107,2.25947497,41592.0,41591.0,0.00037036]
[1641689002356,2.25947497,41592.0,41591.0,0.00036416]
[1641689002759,1.13197238,41592.0,41591.0,0.00036416]
[1641689002955,1.03197238,41592.0,41591.0,0.00036416]
[1641689003157,1.02197238,41592.0,41591.0,0.00036416]
[1641689003857,0.65043926,41592.0,41591.0,0.00036416]
[1641689004157,0.6602,41592.0,41591.0,0.00036416]
[1641689004355,0.6602,41592.0,41591.0,0.00072832]
[1641689004556,0.6602,41592.0,41591.0,0.00036416]
[1641689005359,0.6492,41592.0,41591.0,0.00036416]
[1641689005557,0.0481,41592.0,41591.0,0.00037048]
[1641689005956,0.0701,41592.0,41591.0,0.00037048]
[1641689007206,0.0481,41592.0,41591.0,0.00037048]
[1641689007603,0.0481,41592.0,41591.0,0.00074096]
[1641689007802,0.0481,41592.0,41591.0,0.00037048]
[1641689008005,0.0601,41592.0,41591.0,0.00037048]
[1641689008404,0.6101,41592.0,41591.0,0.00037048]
[1641689008804,0.6101,41592.0,41591.0,0.00074096]
[1641689009006,0.6101,41592.0,41591.0,0.00037048]
[1641689009405,0.5981,41592.0,41591.0,0.00037048]
[1641689009852,0.5981,41592.0,41591.0,0.00074087]
[1641689010053,0.0591,41592.0,41591.0,0.00037039]
[1641689011253,0.0481,41592.0,41591.0,0.00037039]
[1641689012056,0.221341,41592.0,41591.0,0.00074078]
[1641689012254,0.521341,41592.0,41591.0,0.00037039]
[1641689012856,0.221341,41592.0,41591.0,0.00037039]
[1641689013259,0.168341,41592.0,41591.0,0.00037039]
[1641689013710,0.060126,41590.0,41587.0,0.060126]
[1641689013910,0.0481,41589.0,41586.0,0.39715311]
[1641689014915,0.37747699,41589.0,41586.0,0.39715311]
[1641689015116,0.0481,41589.0,41586.0,0.39715311]
[1641689015316,0.060129,41588.0,41586.0,0.5354426]
[1641689015616,0.0481,41587.0,41586.0,0.5354426]
[1641689017120,0.0481,41587.0,41586.0,0.39715311]
[1641689018154,0.0541,41587.0,41586.0,0.39715311]
[1641689018553,0.0541,41587.0,41586.0,0.65058004]
[1641689018854,0.0541,41587.0,41586.0,0.65095498]
[1641689019255,0.0481,41587.0,41586.0,0.65095498]
[1641689020155,0.0611,41587.0,41586.0,0.65095498]
[1641689021503,0.0481,41587.0,41586.0,0.39752805]
[1641689022105,0.0631,41587.0,41586.0,0.39752805]
[1641689023104,0.0631,41587.0,41586.0,0.39752107]
[1641689023304,0.0481,41587.0,41586.0,0.39752107]
[1641689024106,0.0631,41587.0,41586.0,0.39752107]
[1641689025257,0.0481,41587.0,41586.0,0.39752107]
[1641689025559,0.04775147,41587.0,41586.0,0.39752107]
[1641689026160,0.06275147,41587.0,41586.0,0.39752107]
[1641689026358,0.06275147,41587.0,41586.0,0.39788903]
[1641689026559,0.06275147,41587.0,41586.0,0.39752107]
[1641689027363,0.04775147,41587.0,41586.0,0.39752107]
[1641689027562,0.04775147,41587.0,41586.0,0.39752116]
[1641689028260,0.06575147,41587.0,41586.0,0.39752116]
[1641689029518,0.04775147,41587.0,41586.0,0.39752116]
[1641689029717,0.04775147,41587.0,41586.0,0.39788921]
[1641689029917,0.04775147,41587.0,41586.0,0.39752116]
[1641689030119,0.05975147,41587.0,41586.0,0.39752116]
[1641689030920,0.33163793,41587.0,41586.0,0.39752116]
[1641689032119,0.33063793,41587.0,41586.0,0.39752116]
[1641689032555,0.05875147,41587.0,41586.0,0.39752116]
[1641689032954,0.05875147,41587.0,41586.0,0.39788921]
[1641689033153,0.05875147,41587.0,41586.0,0.39752116]
[1641689033353,0.04775147,41587.0,41586.0,0.39752116]
[1641689034155,0.06375147,41587.0,41586.0,0.39752116]
[1641689035155,0.41375147,41587.0,41586.0,0.39788921]
[1641689035355,0.39775147,41587.0,41586.0,0.39752116]
[1641689035755,0.04775147,41587.0,41586.0,0.39752116]
[1641689036204,0.05975147,41587.0,41586.0,0.39788921]
[1641689036400,0.05975147,41587.0,41586.0,0.39752116]
[1641689037300,0.04775147,41587.0,41586.0,0.39752116]
[1641689038201,0.06175147,41587.0,41586.0,0.39788921]
[1641689038702,0.06175147,41587.0,41586.0,0.39752116]
[1641689039105,0.06175147,41587.0,41586.0,0.39787558]
[1641689039305,0.36232762,41587.0,41586.0,0.39750753]
[1641689039506,0.34832762,41587.0,41586.0,0.39750753]
[1641689039706,0.04775147,41587.0,41586.0,0.39750753]
[1641689039955,0.89775147,41587.0,41586.0,0.39750753]
[1641689040155,1.24053223,41587.0,41586.0,0.39750753]
[1641689040359,0.060143,41583.0,41578.0,0.00011]
[1641689040563,0.00123723,41581.0,41578.0,0.00011]
[1641689040757,0.04729,41580.0,41578.0,0.00011]
[1641689041459,0.04648,41580.0,41579.0,0.00051367]
[1641689041957,0.54648,41580.0,41579.0,0.00051367]
[1641689042157,0.55848,41580.0,41579.0,0.00051367]
[1641689042555,0.55848,41580.0,41579.0,0.00051368]
[1641689043356,0.64648,41580.0,41579.0,0.00051368]
[1641689044214,0.65748,41580.0,41579.0,0.00051368]
[1641689044716,0.65748,41580.0,41579.0,0.00046958]
[1641689044913,3.73959139,41580.0,41579.0,0.00046958]
[1641689045312,3.72859139,41580.0,41579.0,0.00046958]
[1641689045713,3.12859139,41580.0,41579.0,0.00046775]
[1641689046112,3.13959139,41580.0,41579.0,0.00046775]
[1641689047358,3.12859139,41580.0,41579.0,0.00046775]
[1641689048158,3.37950628,41580.0,41579.0,0.00046775]
[1641689048958,3.47950628,41580.0,41579.0,0.00083407]
[1641689049260,3.47950628,41580.0,41579.0,0.00047632]
[1641689049458,3.46750628,41580.0,41579.0,0.00047632]
[1641689050059,3.47850628,41580.0,41579.0,0.00084236]
[1641689050358,3.47850628,41580.0,41579.0,0.00047604]
[1641689051401,3.46750628,41580.0,41579.0,0.00047604]
[1641689052100,3.13859139,41580.0,41579.0,0.00047604]
[1641689053401,3.12859139,41580.0,41579.0,0.00084189]
[1641689053700,3.12859139,41580.0,41579.0,0.00047585]
[1641689054101,3.14059139,41580.0,41579.0,0.00047585]
[1641689054504,3.14059139,41580.0,41579.0,0.00047587]
[1641689055357,3.12859139,41580.0,41579.0,0.00047587]
[1641689056160,3.14559139,41580.0,41579.0,0.00047587]
[1641689057459,3.12859139,41580.0,41579.0,0.00047587]
[1641689058263,3.14459139,41580.0,41579.0,0.00047587]
[1641689058903,3.14459139,41580.0,41579.0,0.00084174]
[1641689059103,3.14459139,41580.0,41579.0,0.00047587]
[1641689059604,3.12859139,41580.0,41579.0,0.00047587]
[1641689060103,3.14159139,41580.0,41579.0,0.00047587]
[1641689060505,0.05948,41580.0,41579.0,0.00047587]
[1641689060904,0.013,41580.0,41579.0,0.00047587]
[1641689061503,0.50927364,41581.0,41579.0,0.00047587]
[1641689061704,0.50927364,41581.0,41579.0,0.06060987]
[1641689062111,0.52127364,41581.0,41579.0,0.06060987]
[1641689062359,0.52127364,41581.0,41579.0,0.12074419]
[1641689062554,0.52127364,41581.0,41579.0,0.07865086]
[1641689063155,0.52127364,41581.0,41579.0,0.06060986]
[1641689063356,0.52127364,41581.0,41579.0,0.06097572]
[1641689063357,0.50927364,41581.0,41579.0,0.06097572]
[1641689063556,0.50927364,41581.0,41579.0,0.06060986]
[1641689064156,0.52527364,41581.0,41579.0,0.13878721]
[1641689064760,0.52527364,41581.0,41580.0,0.27920578]
[1641689065456,0.50927364,41581.0,41580.0,0.27920578]
[1641689065660,0.50927364,41581.0,41580.0,0.27957163]
[1641689066098,0.52527364,41581.0,41580.0,0.27957163]
[1641689067501,0.50927364,41581.0,41580.0,0.27957163]
[1641689068301,0.52227364,41581.0,41580.0,0.27957163]
[1641689069502,0.50927364,41581.0,41580.0,0.27957163]
[1641689069954,0.50927364,41581.0,41580.0,0.27993748]
[1641689070156,0.52027364,41581.0,41580.0,0.27957163]
[1641689070955,0.52027364,41581.0,41580.0,0.00036585]
[1641689071558,3.85927483,41581.0,41580.0,0.00036585]
[1641689072158,3.87127483,41581.0,41580.0,0.0007317]
[1641689072358,3.87127483,41581.0,41580.0,0.00036585]
[1641689073458,3.85927483,41581.0,41580.0,0.00036585]
[1641689074306,3.87727483,41581.0,41580.0,0.0007317]
[1641689074507,3.87727483,41581.0,41580.0,0.00036585]
[1641689075509,3.85927483,41581.0,41580.0,0.0007317]
[1641689075808,3.85927483,41581.0,41580.0,0.00036585]
[1641689076208,3.87427483,41581.0,41580.0,0.00036585]
[1641689077453,3.85927483,41581.0,41580.0,0.00036585]
[1641689078153,3.87227483,41581.0,41580.0,0.0007317]
[1641689078358,3.87227483,41581.0,41580.0,0.00036585]
[1641689078655,3.87227483,41581.0,41580.0,0.0007317]
[1641689079254,3.87227483,41581.0,41580.0,0.00036585]
[1641689079454,3.85927483,41581.0,41580.0,0.00036585]
[1641689080358,3.87227483,41581.0,41580.0,0.00036585]
[1641689081510,3.85927483,41581.0,41580.0,0.00036585]
[1641689081910,3.85927483,41581.0,41580.0,0.0007317]
[1641689082112,3.85927483,41581.0,41580.0,0.00036585]
[1641689082312,3.87327483,41581.0,41580.0,0.00036585]
[1641689083015,3.87327483,41581.0,41580.0,0.0007317]
[1641689083215,3.87327483,41581.0,41580.0,0.00036585]
[1641689083413,3.85927483,41581.0,41580.0,0.00036585]
[1641689084214,3.87727483,41581.0,41580.0,0.00036585]
[1641689085562,3.85927483,41581.0,41580.0,0.00036585]
[1641689085957,3.41015019,41581.0,41580.0,0.00036585]
[1641689086158,3.42715019,41581.0,41580.0,0.00036585]
[1641689086359,0.017,41581.0,41580.0,0.30763487]
[1641689086560,0.017,41581.0,41580.0,0.69471987]
[1641689087463,0.017,41581.0,41580.0,0.69508572]
[1641689087660,0.017,41581.0,41580.0,0.69471987]
[1641689090112,0.49951861,41586.0,41580.0,0.69471987]
[1641689090311,0.49951861,41586.0,41584.0,0.30478631]
[1641689090510,0.49951861,41586.0,41584.0,0.586204]
[1641689090911,0.49951861,41586.0,41585.0,0.65806757]
[1641689090912,0.43939461,41586.0,41585.0,0.65806757]
[1641689091111,0.43939461,41586.0,41585.0,0.25806757]
[1641689091311,0.43939461,41586.0,41585.0,0.30806757]
[1641689092357,0.44439461,41586.0,41585.0,0.30806757]
[1641689093557,0.43939461,41586.0,41585.0,0.05]
[1641689093756,0.43939461,41586.0,41584.0,0.7463267]
[1641689094157,0.44139461,41586.0,41584.0,0.7463267]
[1641689094357,0.44139461,41586.0,41584.0,1.00518666]
[1641689095056,0.44139461,41586.0,41585.0,0.60732644]
[1641689095257,0.44139461,41586.0,41585.0,0.25732644]
[1641689096103,0.43939461,41586.0,41585.0,0.25732644]
[1641689096309,0.44439461,41586.0,41585.0,0.65732644]
[1641689096603,0.44439461,41586.0,41585.0,0.64441144]
[1641689097404,0.43939461,41586.0,41585.0,0.64441144]
[1641689100461,0.43939461,41586.0,41585.0,0.387085]
[1641689100861,0.43939461,41586.0,41584.0,0.0601227]
[1641689101065,2.78003245,41586.0,41584.0,0.0601227]
[1641689101663,0.43939461,41586.0,41584.0,0.0601227]
[1641689102262,0.44539461,41586.0,41584.0,0.0601227]
[1641689104409,0.45739461,41586.0,41584.0,0.0601227]
[1641689104708,0.45139461,41586.0,41584.0,0.3822767]
[1641689105611,0.43939461,41586.0,41584.0,0.3822767]
[1641689106215,0.44539461,41586.0,41584.0,0.3822767]
[1641689107564,0.43939461,41586.0,41584.0,0.3822767]
[1641689108364,0.44039461,41586.0,41584.0,0.3822767]
[1641689108963,0.44039461,41586.0,41585.0,0.25903732]
[1641689109163,0.44039461,41586.0,41585.0,0.55903732]
[1641689109364,0.44039461,41586.0,41585.0,0.94612232]
[1641689109565,0.44642261,41586.0,41585.0,1.19612232]
[1641689109968,0.00044184,41591.0,41586.0,0.19734561]
[1641689110166,0.00044184,41591.0,41590.0,1.237085]
[1641689110468,0.00044184,41591.0,41590.0,1.3383421]
[1641689110668,0.00044184,41591.0,41590.0,1.5383421]
[1641689110865,0.00044188,41591.0,41590.0,1.5383421]
[1641689111115,0.00044188,41591.0,41590.0,2.24212971]
[1641689111919,0.0004419,41591.0,41590.0,2.30222871]
[1641689112121,0.2396773,41594.0,41591.0,0.85]
[1641689112323,0.2396773,41594.0,41592.0,0.44718245]
[1641689112522,0.2396773,41594.0,41592.0,0.64718245]
[1641689112719,0.2396773,41594.0,41593.0,1.237085]
[1641689112921,0.0868163,41594.0,41593.0,1.437085]
[1641689113319,0.2733103,41613.0,41610.0,0.24141348]
[1641689113524,0.000696,41615.0,41612.0,0.06008567]
[1641689114323,0.042696,41615.0,41613.0,0.060082]
[1641689114519,0.042696,41615.0,41613.0,0.23024172]
[1641689114721,0.042696,41615.0,41614.0,0.387085]
[1641689114962,0.042696,41615.0,41614.0,0.437085]
[1641689115264,0.042696,41615.0,41614.0,0.69751957]
[1641689115463,0.042696,41615.0,41614.0,0.69872751]
[1641689115662,0.042696,41615.0,41614.0,0.76237869]
[1641689115663,0.000696,41615.0,41614.0,0.76237869]
[1641689116062,0.000696,41615.0,41614.0,0.86237869]
[1641689116262,0.00114664,41615.0,41614.0,0.86237869]
[1641689116465,0.02614664,41615.0,41614.0,0.93144669]
[1641689116667,0.00041001,41623.0,41620.0,0.00121424]
[1641689116866,0.00031001,41627.0,41622.0,0.85]
[1641689117065,0.00075005,41629.0,41628.0,0.00121665]
[1641689117265,0.00075005,41629.0,41628.0,0.01901665]
[1641689117466,0.00075005,41629.0,41628.0,0.36046413]
[1641689117666,0.00075005,41629.0,41628.0,1.0792869]
[1641689117864,0.00046059,41629.0,41628.0,1.63300258]
[1641689118365,0.00046059,41629.0,41628.0,1.70705248]
[1641689118615,0.00024059,41629.0,41628.0,1.70705248]
[1641689118815,0.0001,41631.0,41630.0,0.85]
[1641689119019,0.01040002,41632.0,41631.0,0.85]
[1641689119216,0.01040002,41632.0,41631.0,1.56549508]
[1641689119415,0.00041001,41633.0,41632.0,0.85]
[1641689119416,0.0002,41633.0,41632.0,0.85]
[1641689119615,0.0002,41634.0,41633.0,0.85]
[1641689119819,0.00031001,41635.0,41633.0,1.52099444]
[1641689120015,0.00021001,41637.0,41635.0,0.387085]
[1641689120215,0.00021001,41637.0,41636.0,0.00122879]
[1641689120415,0.00021001,41637.0,41636.0,1.08831379]
[1641689120615,0.0001,41637.0,41636.0,1.18831379]
[1641689120820,0.00727651,41641.0,41640.0,0.85]
[1641689121017,0.00031001,41643.0,41642.0,0.85]
[1641689121219,0.0001,41643.0,41642.0,1.237085]
[1641689121415,0.0001,41643.0,41642.0,1.68763962]
[1641689121619,0.00031001,41648.0,41646.0,0.387085]
[1641689121815,0.00031001,41648.0,41647.0,1.087085]
[1641689122014,0.00031001,41648.0,41647.0,1.187085]
[1641689122466,0.00029004,41651.0,41649.0,0.387085]
[1641689122666,0.00041001,41655.0,41652.0,1.237085]
[1641689122667,0.00031002,41654.0,41652.0,1.237085]
[1641689122867,0.00041001,41655.0,41654.0,0.85]
[1641689122868,0.0001,41655.0,41654.0,0.85]
[1641689123065,0.0001,41657.0,41655.0,1.237085]
[1641689123266,0.0001,41657.0,41656.0,1.52099444]
[1641689123466,0.0001,41661.0,41660.0,1.2339164]
[1641689123666,0.0001,41664.0,41662.0,0.387085]
[1641689123865,0.15028249,41676.0,41663.0,0.70127636]
[1641689124066,0.0042,41679.0,41675.0,0.28385413]
[1641689124269,0.0042,41679.0,41663.0,1.0851858]
[1641689124270,0.0001,41677.0,41663.0,1.0851858]
[1641689124468,0.0001,41677.0,41674.0,0.00109543]
[1641689124765,0.0001,41677.0,41675.0,0.13746732]
[1641689124965,0.0042,41679.0,41675.0,0.81810237]
[1641689125166,0.0001,41680.0,41676.0,1.42099444]
[1641689125367,0.02473457,41684.0,41677.0,0.30726664]
[1641689125568,0.0001,41683.0,41682.0,0.00125545]
[1641689125766,0.0001,41683.0,41682.0,0.38823044]
[1641689125965,0.0001,41683.0,41682.0,0.38813044]
[1641689126236,0.0001,41683.0,41682.0,0.53838226]
[1641689126434,0.0001,41683.0,41682.0,0.55328226]
[1641689126635,0.0001,41683.0,41682.0,0.55317225]
[1641689126837,0.0001,41683.0,41682.0,0.55329116]
[1641689127034,0.0001,41683.0,41682.0,0.80329116]
[1641689127234,0.0001,41683.0,41682.0,0.55318115]
[1641689127636,0.0001,41683.0,41682.0,0.53807114]
[1641689127837,0.0001,41683.0,41682.0,0.43835097]
[1641689128036,0.0001,41683.0,41678.0,0.119951]
[1641689128436,0.8501,41683.0,41682.0,0.01888999]
[1641689128837,0.0001,41683.0,41682.0,0.01877998]
[1641689129038,0.00021001,41683.0,41682.0,0.01877998]
[1641689129639,0.00065843,41683.0,41678.0,0.119959]
[1641689129871,0.00065843,41683.0,41674.0,0.24770658]
[1641689130070,0.015593,41684.0,41677.0,0.059987]
[1641689130270,0.015593,41684.0,41679.0,0.05998188]
[1641689130769,0.00044839,41682.0,41679.0,0.05998188]
[1641689130970,0.00044839,41682.0,41678.0,0.011997]
[1641689131170,0.00044839,41682.0,41675.0,0.40169071]